bitfinex-derivatives/quotes_ETHF0:USTF0_20250405
["timestamp","ask_amount","ask_price","bid_price","bid_amount"]
[1743824546503,2.50638,1812.8,1812.7,0.00826811]
[1743824547305,1.4027,1812.8,1812.7,0.00826811]
[1743824547893,2.50638,1812.8,1812.7,0.00826811]
[1743824548203,1.4027,1812.8,1812.7,0.00826811]
[1743824550008,1.5172,1813.0,1812.7,0.00826811]
[1743824550199,3.507,1812.9,1812.7,0.00826811]
[1743824550504,3.507,1812.9,1812.7,2.54017811]
[1743824550699,3.507,1812.9,1812.8,2.1477]
[1743824551505,3.0488,1813.0,1812.8,2.1477]
[1743824551703,5.8047,1813.0,1812.9,1.4282]
[1743824551900,6.552,1813.0,1812.9,1.4282]
[1743824552207,3.045,1813.0,1812.9,1.4282]
[1743824559505,4.14856,1813.0,1812.9,1.4282]
[1743824560201,3.045,1813.0,1812.9,1.4282]
[1743824565915,3.21606811,1813.1,1813.0,1.10356]
[1743824566414,3.21606811,1813.1,1812.9,3.27978]
[1743824566616,3.21606811,1813.1,1813.0,1.4313]
[1743824571307,0.00826811,1813.1,1813.0,1.4313]
[1743824572418,0.00826811,1813.1,1813.0,2.53486]
[1743824578521,1.1036,1813.0,1812.7,0.00826811]
[1743824578719,9.22306811,1813.1,1812.7,0.00826811]
[1743824578720,4.05613,1812.9,1812.7,0.00826811]
[1743824578922,5.0094,1812.8,1812.7,0.00826811]
[1743824581813,5.0094,1812.8,1812.7,1.11200811]
[1743824582419,5.0094,1812.8,1812.7,0.00826811]
[1743824582621,5.0094,1812.8,1812.7,0.75226811]
[1743824582821,5.0094,1812.8,1812.7,2.24626811]
[1743824584528,3.507,1812.8,1812.7,3.35000811]
[1743824584731,4.9571,1812.9,1812.8,1.10368]
[1743824584927,4.9571,1812.9,1812.8,1.494]
[1743824590037,4.9571,1812.9,1812.8,2.59768]
[1743824590533,4.2603,1812.9,1812.8,2.59768]
[1743824591334,4.2603,1812.9,1812.8,1.494]
[1743824591630,5.7573,1812.9,1812.8,1.494]
[1743824598736,8.9651,1812.9,1812.7,0.00826811]
[1743824598934,1.10376,1812.7,1812.3,5.71726]
[1743824599130,6.4642,1812.6,1812.3,5.71726]
[1743824599336,1.503,1812.5,1812.4,1.10392]
[1743824600237,4.9612,1812.6,1812.4,1.10392]
[1743824600436,4.9612,1812.6,1812.4,3.20762]
[1743824600635,6.4642,1812.6,1812.4,3.20762]
[1743824601932,0.7192,1812.6,1812.5,1.10386]
[1743824602236,0.7192,1812.6,1812.5,2.49936]
[1743824602437,0.7192,1812.6,1812.5,1.3955]
[1743824602638,0.7192,1812.6,1812.3,4.32001811]
[1743824602939,2.2129,1812.5,1812.4,1.3955]
[1743824603237,2.2129,1812.5,1812.4,3.20122]
[1743824603439,2.2129,1812.5,1812.4,2.0973]
[1743824608242,2.2129,1812.5,1812.3,1.11221811]
[1743824608439,1.4073,1812.4,1812.3,1.11221811]
[1743824608636,1.4073,1812.4,1812.3,2.53751811]
[1743824610546,0.7519,1812.5,1812.4,1.10392]
[1743824610845,0.7519,1812.5,1812.4,1.4392]
[1743824611040,0.7519,1812.5,1812.4,2.54312]
[1743824611244,2.2235,1812.5,1812.4,2.54312]
[1743824611843,0.7192,1812.6,1812.4,2.54312]
[1743824612047,2.1908,1812.6,1812.5,1.4392]
[1743824614351,2.1908,1812.6,1812.5,2.1349]
[1743824614541,3.9398,1812.7,1812.5,2.1349]
[1743824614752,0.00826811,1813.1,1812.7,1.10374]
[1743824614753,6.7148,1812.9,1812.7,1.10374]
[1743824614955,2.2578,1813.0,1812.8,2.1756]
[1743824615155,6.4772,1813.0,1812.9,1.4799]
[1743824616558,9.685,1813.0,1812.9,1.4799]
[1743824617460,6.4772,1813.0,1812.9,1.4799]
[1743824617658,9.685,1813.0,1812.9,1.4799]
[1743824618558,12.185,1813.0,1812.6,1.10377]
[1743824618863,4.31153,1812.8,1812.4,3.33319]
[1743824619159,6.5367,1812.7,1812.4,3.33319]
[1743824619362,1.4671,1812.6,1812.4,3.33319]
[1743824620758,1.4671,1812.6,1812.5,1.5086]
[1743824625463,2.5709,1812.6,1812.5,1.5086]
[1743824634766,1.10386,1812.5,1812.3,0.00826811]
[1743824634968,4.61092,1812.4,1812.3,0.00826811]
[1743824635270,6.10882,1812.4,1812.3,0.00826811]
[1743824635575,7.59472,1812.4,1812.3,0.00826811]
[1743824642584,2.2505,1812.4,1812.3,0.00826811]
[1743824642784,3.2078,1812.5,1812.3,2.56112811]
[1743824642984,3.508,1812.6,1812.4,2.55282]
[1743824643184,3.508,1812.6,1812.5,2.8656]
[1743824645779,4.31155,1812.7,1812.5,2.8656]
[1743824645980,6.7158,1812.7,1812.6,1.5181]
[1743824647682,3.2078,1812.7,1812.6,1.5181]
[1743824648687,3.507,1812.8,1812.6,1.5181]
[1743824649286,4.61069,1812.8,1812.6,1.5181]
[1743824649482,3.507,1812.8,1812.6,1.5181]
[1743824651182,3.507,1812.8,1812.6,2.62189]
[1743824651884,3.507,1812.8,1812.7,1.3937]
[1743824653182,3.2078,1812.9,1812.7,2.49744]
[1743824653489,3.2078,1812.9,1812.8,0.7077]
[1743824653787,3.2078,1812.9,1812.8,2.8356]
[1743824655491,9.97019811,1813.1,1812.8,2.8356]
[1743824655689,9.97019811,1813.1,1812.9,1.3861]
[1743824656584,6.76239811,1813.1,1812.9,1.3861]
[1743824656788,9.97019811,1813.1,1812.9,1.3861]
[1743824657091,6.76239811,1813.1,1812.9,1.3861]
[1743824657290,9.97019811,1813.1,1812.9,1.3861]
[1743824660190,6.76239811,1813.1,1812.9,1.3861]
[1743824660393,9.97019811,1813.1,1812.9,1.3861]
[1743824662290,1.462,1813.0,1812.9,1.3861]
[1743824664292,2.56556,1813.0,1812.9,1.3861]
[1743824664492,1.10366,1812.9,1812.4,3.2078]
[1743824664696,1.10366,1812.9,1812.6,2.5665]
[1743824664697,6.48706,1812.9,1812.6,2.5665]
[1743824664898,0.7378,1812.8,1812.6,2.5665]
[1743824665197,2.1915,1812.8,1812.7,1.5006]
[1743824675401,2.1915,1812.8,1812.7,2.60434]
[1743824676402,3.9214,1812.9,1812.7,2.60434]
[1743824676699,5.3186,1812.9,1812.8,2.1796]
[1743824677506,5.3186,1812.9,1812.8,3.28328]
[1743824677694,3.21606811,1813.1,1812.8,2.93745628]
[1743824677997,0.00826811,1813.1,1813.0,1.10356]
[1743824678198,0.00826811,1813.1,1813.0,2.58556]
[1743824678393,0.00826811,1813.1,1813.0,3.3429884]
[1743824679897,0.00826811,1813.1,1813.0,2.58556]
[1743824680300,0.00826811,1813.1,1813.0,3.34267428]
[1743824680612,0.00826811,1813.1,1813.0,2.58556]
[1743824682900,1.49486811,1813.1,1813.0,1.482]
[1743824683906,1.49486811,1813.1,1813.0,2.58556]
[1743824691509,0.00826811,1813.1,1813.0,2.58556]
[1743824703714,1.45896811,1813.1,1813.0,2.58556]
[1743824706521,1.45896811,1813.1,1813.0,1.10356]
[1743824707319,1.45896811,1813.1,1812.9,1.5261]
[1743824707620,0.6945,1813.0,1812.9,2.62972]
[1743824709819,0.6945,1813.0,1812.9,3.38777161]
[1743824710121,1.45896811,1813.1,1812.9,3.38777161]
[1743824710320,1.45896811,1813.1,1813.0,1.4898]
[1743824712019,1.45896811,1813.1,1813.0,2.59336]
[1743824717026,0.00826811,1813.1,1813.0,2.59336]
[1743824730134,0.00826811,1813.1,1813.0,5.80116]
[1743824734441,0.7015,1813.4,1813.3,1.10338]
[1743824734642,3.505,1813.6,1813.4,1.10328]
[1743824734838,3.505,1813.6,1813.5,1.5222]
[1743824735238,5.6698,1813.6,1813.5,1.5222]
[1743824739342,2.1648,1813.6,1813.5,1.5222]
[1743824742346,2.1648,1813.6,1813.5,2.62545]
[1743824745147,2.1648,1813.6,1813.5,1.5222]
[1743824745447,2.1648,1813.6,1813.5,2.62545]
[1743824750053,2.1648,1813.6,1813.4,5.06364811]
[1743824750246,1.5071,1813.5,1813.4,4.31934811]
[1743824750845,1.5071,1813.5,1813.4,5.85474811]
[1743824751351,0.7036,1813.6,1813.5,1.10325]
[1743824751556,2.1897,1813.6,1813.5,3.38785]
[1743824752850,0.72016811,1813.7,1813.6,1.10319]
[1743824753150,0.72016811,1813.7,1813.6,2.63859]
[1743824753350,2.20626811,1813.7,1813.6,2.63859]
[1743824765366,2.20626811,1813.7,1813.6,1.5354]
[1743824766867,2.20626811,1813.7,1813.6,2.63859]
[1743824769170,2.20626811,1813.7,1813.6,1.5354]
[1743824771264,2.20626811,1813.7,1813.6,2.63859]
[1743824771865,2.20626811,1813.7,1813.6,1.5354]
[1743824774271,2.20626811,1813.7,1813.6,2.63859]
[1743824775868,3.2078,1814.1,1813.7,1.10307]
[1743824776063,3.504,1814.0,1813.8,1.10305]
[1743824776269,4.9813,1814.0,1813.9,1.4584]
[1743824777476,1.4773,1814.0,1813.9,2.56141]
[1743824777666,1.47006811,1814.1,1814.0,1.10295]
[1743824777870,1.47006811,1814.1,1814.0,2.56135]
[1743824783173,1.47006811,1814.1,1814.0,1.10295]
[1743824783375,2.88836811,1814.1,1813.9,1.10296]
[1743824783977,1.4183,1814.0,1813.9,2.52546]
[1743824784378,1.4183,1814.0,1813.9,3.25706]
[1743824787782,1.4183,1814.0,1813.9,1.4225]
[1743824787973,1.4183,1814.0,1813.9,2.52551]
[1743824790981,1.47006811,1814.1,1813.9,2.52551]
[1743824791183,1.47006811,1814.1,1814.0,2.62175]
[1743824793381,2.97606811,1814.1,1814.0,2.62175]
[1743824793684,1.47006811,1814.1,1814.0,2.62175]
[1743824794884,2.97606811,1814.1,1814.0,2.62175]
[1743824796186,0.74436811,1814.1,1814.0,2.62175]
[1743824798288,0.00826811,1814.1,1814.0,2.62175]
[1743824801184,0.00826811,1814.1,1814.0,1.5188]
[1743824801391,0.70386811,1814.1,1814.0,2.62175]
[1743824802390,0.00826811,1814.1,1814.0,2.62175]
[1743824803486,0.00826811,1814.1,1814.0,4.07995]
[1743824804980,0.00826811,1814.1,1814.0,4.83697289]
[1743824805185,0.00826811,1814.1,1814.0,4.8371442]
[1743824805890,0.00826811,1814.1,1814.0,4.83714674]
[1743824809802,0.00826811,1814.1,1814.0,4.07995]
[1743824810190,0.00826811,1814.1,1814.0,3.36855]
[1743824815692,1.45166811,1814.1,1814.0,3.36855]
[1743824816493,1.45166811,1814.1,1814.0,2.62175]
[1743824820701,0.00826811,1814.1,1814.0,3.37923225]
[1743824821700,0.00826811,1814.1,1814.0,3.3792335]
[1743824821901,0.00826811,1814.1,1814.0,3.37921077]
[1743824823403,0.00826811,1814.1,1814.0,3.37922184]
[1743824826303,0.00826811,1814.1,1814.0,2.62175]
[1743824827207,0.00826811,1814.1,1814.0,3.37932288]
[1743824828104,0.00826811,1814.1,1814.0,2.62175]
[1743824828808,1.44826811,1814.1,1813.9,5.04858]
[1743824829001,0.7574,1814.0,1813.9,3.2078]
[1743824829203,0.7574,1814.0,1813.9,5.06845331]
[1743824829637,1.461,1814.0,1813.9,3.2078]
[1743824830042,2.9014,1814.0,1813.9,3.2078]
[1743824830235,2.9014,1814.0,1813.7,1.10308]
[1743824830428,4.6482,1813.9,1813.7,1.10308]
[1743824830733,1.4404,1813.8,1813.7,1.10308]
[1743824832545,1.4404,1813.8,1813.7,2.57268]
[1743824834847,3.2078,1813.9,1813.8,1.10307]
[1743824835141,3.2078,1813.9,1813.8,2.56847]
[1743824839048,0.7574,1814.0,1813.9,1.10301]
[1743824839236,0.7574,1814.0,1813.9,3.24361]
[1743824839442,0.00826811,1814.1,1814.0,1.10295]
[1743824839638,0.00826811,1814.1,1814.0,2.53845]
[1743824855428,0.00826811,1814.1,1814.0,5.74625]
[1743824856721,0.00826811,1814.1,1814.0,6.50252528]
[1743824857329,0.00826811,1814.1,1814.0,5.74625]
[1743824860531,0.71956811,1814.1,1814.0,5.74625]
[1743824861829,2.24356811,1814.1,1814.0,5.74625]
[1743824864140,2.24356811,1814.1,1814.0,2.53845]
[1743824867634,2.24356811,1814.1,1813.9,3.9129]
[1743824867841,2.217,1814.0,1813.9,4.31077]
[1743824868336,2.217,1814.0,1813.9,5.06829073]
[1743824869237,2.217,1814.0,1813.7,1.10311]
[1743824869438,1.463,1813.9,1813.7,1.10311]
[1743824869740,0.7034,1813.8,1813.6,2.1712]
[1743824869934,1.5125,1813.7,1813.6,3.27439]
[1743824870236,2.2766,1813.7,1813.6,3.27439]
[1743824873942,0.7034,1813.8,1813.7,1.10313]
[1743824874135,0.7034,1813.8,1813.7,2.59793]
[1743824875529,2.2249,1813.8,1813.7,2.59793]
[1743824883145,2.2249,1813.8,1813.7,1.10313]
[1743824883943,2.2249,1813.8,1813.7,2.62473]
[1743824887040,5.7259,1813.8,1813.4,0.00826811]
[1743824887245,2.1341,1813.7,1813.4,2.60333811]
[1743824887448,1.4093,1813.6,1813.4,2.60333811]
[1743824887746,0.744,1813.5,1813.4,2.60333811]
[1743824888746,0.744,1813.5,1813.4,5.81113811]
[1743824890543,0.744,1813.5,1813.4,4.70786811]
[1743824890742,0.744,1813.5,1813.4,5.81117811]
[1743824891242,0.744,1813.5,1813.4,4.70786811]
[1743824892847,0.744,1813.5,1813.4,5.81117811]
[1743824893552,0.744,1813.5,1813.4,4.70786811]
[1743824893850,0.744,1813.5,1813.4,0.00826811]
[1743824895652,0.744,1813.5,1813.4,1.11157811]
[1743824896149,1.4524,1813.5,1813.4,2.60687811]
[1743824898452,1.4524,1813.5,1813.4,1.50356811]
[1743824901354,2.9904,1813.5,1813.4,0.00826811]
[1743824902352,2.9904,1813.5,1813.4,1.11157811]
[1743824902553,2.9904,1813.5,1813.4,0.00826811]
[1743824903255,6.4914,1813.5,1813.4,0.00826811]
[1743824912966,6.4914,1813.5,1813.4,1.47916811]
[1743824938190,6.4914,1813.5,1813.4,2.58247811]
[1743824938391,6.7088,1813.6,1813.4,2.58247811]
[1743824938690,6.7088,1813.6,1813.5,1.4433]
[1743824938891,6.7088,1813.6,1813.5,2.1872]
[1743824941192,9.97109,1813.6,1813.5,2.1872]
[1743824944696,9.97109,1813.6,1813.5,1.4433]
[1743824945796,1.10325,1813.5,1813.4,0.00826811]
[1743824946002,2.57965,1813.5,1813.4,0.00826811]
[1743824947606,2.57965,1813.5,1813.1,1.10346]
[1743824947806,2.9396,1813.4,1813.1,3.35356]
[1743824948006,4.9774,1813.3,1813.2,1.4884]
[1743824951206,4.9774,1813.3,1813.2,2.59184]
[1743824952401,3.501,1813.3,1813.2,2.59184]
[1743824952906,3.501,1813.3,1813.2,3.33464]
[1743824956612,5.0319,1813.3,1813.2,3.33464]
[1743824958712,3.501,1813.4,1813.3,1.10338]
[1743824958908,3.501,1813.5,1813.3,3.21948]
[1743824959109,3.501,1813.5,1813.4,1.4015]
[1743824960315,3.2078,1813.6,1813.4,1.4015]
[1743824960518,3.501,1813.5,1813.4,2.50481]
[1743824961417,3.2078,1813.6,1813.4,2.50481]
[1743824961617,3.2078,1813.6,1813.5,1.3967]
[1743824961814,3.2078,1813.6,1813.5,2.49995]
[1743824963216,5.7081,1813.7,1813.5,2.49995]
[1743824963516,5.7081,1813.7,1813.6,1.3967]
[1743824966615,6.81123,1813.7,1813.3,4.31112]
[1743824966819,2.1731,1813.6,1813.4,1.523]
[1743824968016,1.4576,1813.5,1813.3,4.31112]
[1743824968217,1.4576,1813.5,1813.3,5.82902]
[1743824968720,1.4576,1813.5,1813.3,2.62122]
[1743824968915,0.7622,1813.6,1813.4,2.62121]
[1743824969414,2.2198,1813.6,1813.5,1.5179]
[1743824971020,4.2129,1813.7,1813.5,2.62115]
[1743824971219,4.2129,1813.7,1813.6,1.10319]
[1743824971518,3.501,1813.7,1813.6,3.28709]
[1743824972421,3.501,1813.7,1813.6,2.1839]
[1743824980023,2.193,1813.8,1813.6,2.1839]
[1743824980321,2.193,1813.8,1813.7,1.4954]
[1743824981720,3.29607,1813.8,1813.7,1.4954]
[1743824993032,2.193,1813.8,1813.7,1.4954]
[1743825000036,3.9567,1813.9,1813.7,1.4954]
[1743825000242,7.4557,1813.9,1813.8,1.10307]
[1743825000441,7.4557,1813.9,1813.8,0.7057]
[1743825000634,8.9385,1813.9,1813.8,0.7057]
[1743825001043,8.9385,1813.9,1813.7,1.4954]
[1743825001235,2.1081,1813.8,1813.7,1.4954]
[1743825001434,2.1081,1813.8,1813.7,3.36448737]
[1743825001635,3.21117,1813.8,1813.5,3.23503]
[1743825001836,1.4051,1813.7,1813.5,3.23503]
[1743825002144,0.7615,1813.6,1813.5,2.1318]
[1743825002442,1.4645,1813.6,1813.5,2.89761229]
[1743825003144,1.4645,1813.6,1813.5,4.00086229]
[1743825004047,0.7615,1813.6,1813.5,4.00086229]
[1743825005046,0.7615,1813.6,1813.5,4.00081174]
[1743825007846,0.7615,1813.6,1813.5,4.0007775]
[1743825008848,0.7615,1813.6,1813.5,4.00076111]
[1743825010653,0.7615,1813.6,1813.5,4.0007166]
[1743825012553,0.7615,1813.6,1813.5,4.00070329]
[1743825013555,6.7068,1813.9,1813.7,1.10313]
[1743825013751,6.7068,1813.9,1813.8,0.7384]
[1743825013952,6.7068,1813.9,1813.8,2.1857]
[1743825014153,8.1502,1813.9,1813.8,2.1857]
[1743825014353,8.1502,1813.9,1813.6,1.86157]
[1743825014653,2.1999,1813.8,1813.6,1.86157]
[1743825014852,2.1999,1813.8,1813.6,3.30887]
[1743825016261,3.30298,1813.8,1813.5,1.84162]
[1743825016556,2.1638,1813.7,1813.5,1.10322]
[1743825016760,1.4348,1813.6,1813.5,3.28692]
[1743825016956,2.1282,1813.6,1813.5,4.05250685]
[1743825017351,0.6934,1813.6,1813.5,4.05252571]
[1743825017556,0.729,1813.7,1813.6,1.10319]
[1743825017862,0.729,1813.7,1813.6,2.53249]
[1743825018063,2.1638,1813.7,1813.6,2.53249]
[1743825019766,0.729,1813.7,1813.6,2.53249]
[1743825019950,5.608,1813.9,1813.7,1.10313]
[1743825020154,6.3585,1813.9,1813.7,3.29023]
[1743825020366,7.46152,1813.9,1813.7,2.1871]
[1743825020661,1.3901,1813.8,1813.7,2.1871]
[1743825022658,1.3901,1813.8,1813.7,1.4655]
[1743825023166,1.3901,1813.8,1813.5,1.10322]
[1743825023354,0.7675,1813.7,1813.5,3.32722]
[1743825023558,0.7625,1813.6,1813.5,3.32722]
[1743825023763,2.2226,1813.6,1813.5,4.09301612]
[1743825025972,0.7625,1813.6,1813.5,4.09301612]
[1743825026772,0.7625,1813.6,1813.5,4.09303]
[1743825027266,0.7625,1813.6,1813.5,3.32722]
[1743825027471,0.7625,1813.6,1813.5,4.09303602]
[1743825031166,0.7625,1813.6,1813.5,4.09305157]
[1743825032873,0.7625,1813.6,1813.5,4.09313459]
[1743825033875,2.1646,1813.7,1813.6,1.10319]
[1743825034075,2.1646,1813.7,1813.6,3.27930459]
[1743825034770,2.1646,1813.7,1813.6,3.27931775]
[1743825034970,0.7572,1813.8,1813.6,3.27931775]
[1743825035169,0.7572,1813.8,1813.7,1.4809]
[1743825035370,0.7572,1813.8,1813.7,2.2275]
[1743825035663,2.9732,1813.8,1813.7,2.2275]
[1743825040467,4.07627,1813.8,1813.3,3.2078]
[1743825040671,1.414,1813.7,1813.5,1.10325]
[1743825040868,1.414,1813.7,1813.5,2.57475]
[1743825041568,1.414,1813.7,1813.6,1.4715]
[1743825046077,1.414,1813.7,1813.4,0.7227]
[1743825046282,8.50892,1813.6,1813.2,1.10338]
[1743825046473,2.138,1813.5,1813.3,1.10337]
[1743825046780,2.138,1813.5,1813.4,1.4258]
[1743825048972,0.7213,1813.5,1813.4,2.191]
[1743825054785,0.7213,1813.5,1813.2,1.10341]
[1743825054980,2.2018,1813.4,1813.2,2.55041]
[1743825055181,1.4579,1813.3,1813.2,2.55041]
[1743825059784,4.9559,1813.3,1813.1,0.00826811]
[1743825059982,2.58554,1813.2,1813.1,0.00826811]
[1743825060287,2.9672,1813.2,1813.1,0.00826811]
[1743825063988,2.9672,1813.2,1812.7,3.2078]
[1743825064196,1.10356,1813.0,1812.8,1.4177]
[1743825064387,2.2461,1812.9,1812.8,1.4177]
[1743825064688,2.2461,1812.9,1812.8,2.1836]
[1743825069995,2.2461,1812.9,1812.8,1.4177]
[1743825072784,6.55756,1812.9,1812.7,0.00826811]
[1743825072990,2.2452,1812.8,1812.7,0.00826811]
[1743825073294,2.2452,1812.8,1812.7,1.50426811]
[1743825077891,2.2452,1812.8,1812.7,0.00826811]
[1743825078091,3.9193,1812.9,1812.7,2.54130811]
[1743825078298,3.9193,1812.9,1812.8,2.1856]
[1743825080199,5.3588,1812.9,1812.8,2.1856]
[1743825081600,2.151,1812.9,1812.8,2.1856]
[1743825081898,5.3588,1812.9,1812.8,2.1856]
[1743825083603,2.151,1812.9,1812.8,2.1856]
[1743825083900,2.8522,1812.9,1812.8,2.1856]
[1743825088199,0.7115,1812.9,1812.8,2.1856]
[1743825088506,6.71506811,1813.0,1812.8,3.28924]
[1743825088800,6.71506811,1813.0,1812.9,1.5043]
[1743825088993,3.50726811,1813.0,1812.9,1.5043]
[1743825094196,3.50726811,1813.0,1812.9,2.2235]
[1743825095705,0.00826811,1813.0,1812.9,3.32712]
[1743825095905,0.00826811,1813.0,1812.9,4.09272638]
[1743825096099,0.00826811,1813.0,1812.9,3.32712]
[1743825096305,0.00826811,1813.0,1812.9,4.09259239]
[1743825097103,0.00826811,1813.0,1812.9,3.32712]
[1743825098004,0.00826811,1813.0,1812.9,4.09250478]
[1743825098203,0.00826811,1813.0,1812.9,3.32712]
[1743825099113,0.00826811,1813.0,1812.9,4.09241177]
[1743825100100,0.00826811,1813.0,1812.9,3.32712]
[1743825102405,0.00826811,1813.0,1812.9,1.5043]
[1743825102611,0.76616811,1813.0,1812.9,1.5043]
[1743825103103,2.19246811,1813.0,1812.9,1.5043]
[1743825104708,2.19246811,1813.0,1812.8,0.7563]
[1743825104914,2.19246811,1813.0,1812.8,1.85997]
[1743825105213,2.19246811,1813.0,1812.8,2.2031]
[1743825105915,2.19246811,1813.0,1812.8,3.30678]
[1743825106114,2.19246811,1813.0,1812.9,1.4468]
[1743825106815,5.69146811,1813.0,1812.9,1.4468]
[1743825112119,5.69146811,1813.0,1812.7,0.00826811]
[1743825112320,2.1369,1812.9,1812.7,0.00826811]
[1743825112519,1.3976,1812.8,1812.7,1.51306811]
[1743825112721,1.3976,1812.8,1812.7,2.27851621]
[1743825113621,1.3976,1812.8,1812.7,3.38225621]
[1743825114531,1.3976,1812.8,1812.7,2.27851621]
[1743825115631,0.7393,1812.9,1812.7,3.38225621]
[1743825115927,0.7393,1812.9,1812.8,2.98170264]
[1743825116427,0.7393,1812.9,1812.8,2.98175483]
[1743825118130,0.7393,1812.9,1812.8,2.2161]
[1743825118333,2.1618,1812.9,1812.8,2.98195325]
[1743825121534,7.8696,1812.9,1811.7,14.58243866]
[1743825121741,1.10407,1812.2,1811.9,2.9802]
[1743825122033,2.9188,1812.1,1811.9,2.9802]
[1743825122235,2.9188,1812.1,1811.9,2.2666]
[1743825122531,1.4539,1812.0,1811.7,13.68214866]
[1743825122735,1.4539,1812.0,1811.7,15.18234866]
[1743825122934,1.46216811,1812.0,1811.7,15.18234866]
[1743825123530,6.12734811,1812.0,1811.7,10.15663866]
[1743825123929,1.4611,1811.9,1811.7,10.15663866]
[1743825125029,1.4611,1811.9,1811.7,1.5002]
[1743825125532,2.56537,1811.9,1811.7,1.5002]
[1743825125727,2.56537,1811.9,1811.6,3.9742]
[1743825125728,4.6689,1811.9,1811.4,3.9214]
[1743825125931,3.56926811,1812.0,1811.3,1.10459]
[1743825125932,3.2078,1811.7,1811.3,1.10459]
[1743825126140,5.7622,1811.6,1811.4,1.432]
[1743825127639,5.7622,1811.6,1811.3,1.10459]
[1743825127838,1.4395,1811.5,1811.3,2.54969]
[1743825128040,1.4395,1811.5,1811.4,1.4451]
[1743825129333,1.4395,1811.5,1811.4,2.54963]
[1743825129939,1.4395,1811.5,1811.4,1.4451]
[1743825131038,4.3011,1811.6,1811.4,2.54963]
[1743825131438,4.3011,1811.6,1811.5,1.4476]
[1743825133842,5.7757,1811.6,1811.5,1.4476]
[1743825135643,4.3011,1811.6,1811.5,1.4476]
[1743825135844,3.559,1811.6,1811.5,1.4476]
[1743825136538,3.559,1811.6,1811.5,2.1401]
[1743825139444,3.559,1811.6,1811.5,2.8694]
[1743825140548,3.559,1811.6,1811.5,3.97387]
[1743825144542,3.559,1811.6,1811.5,2.8694]
[1743825145053,3.559,1811.6,1811.5,3.97387]
[1743825145253,3.559,1811.6,1811.5,2.8694]
[1743825148552,4.3067,1811.6,1811.5,2.8694]
[1743825148753,4.3067,1811.6,1811.5,2.1401]
[1743825149252,5.0749,1811.6,1811.4,1.10449]
[1743825149455,5.0749,1811.6,1811.4,1.4228]
[1743825150059,5.0749,1811.6,1811.4,2.52733]
[1743825150657,5.0749,1811.6,1811.4,1.10453]
[1743825152355,5.0749,1811.6,1811.4,2.55313]
[1743825155562,5.0749,1811.6,1811.4,1.4486]
[1743825155757,4.3123,1811.5,1811.1,1.85636]
[1743825155952,1.10454,1811.4,1811.2,0.76096271]
[1743825156158,4.63661,1811.3,1811.1,0.7517]
[1743825156358,0.7157,1811.2,1811.0,2.1522]
[1743825156559,0.7157,1811.2,1811.1,0.76053804]
[1743825157358,0.7157,1811.2,1811.1,1.86525804]
[1743825157560,0.7157,1811.2,1811.1,3.28145804]
[1743825158967,0.7157,1811.2,1811.1,3.28080279]
[1743825159164,0.7157,1811.2,1811.1,2.52092]
[1743825159365,3.532,1811.3,1811.2,1.10465]
[1743825159561,6.7388,1811.5,1811.2,2.20158613]
[1743825159867,3.53,1811.6,1811.4,1.10453]
[1743825160066,6.7388,1811.7,1811.4,1.84793]
[1743825160266,6.7388,1811.7,1811.5,1.4419]
[1743825160470,7.84315,1811.7,1811.5,1.4419]
[1743825160670,0.711,1811.6,1811.5,1.4419]
[1743825162670,0.711,1811.6,1811.5,2.54637]
[1743825163365,0.711,1811.6,1811.5,1.4419]
[1743825163662,0.711,1811.6,1811.5,2.54637]
[1743825165371,0.711,1811.6,1811.5,1.4419]
[1743825165673,0.711,1811.6,1811.5,2.54637]
[1743825167773,2.2447,1811.6,1811.5,2.54637]
[1743825170979,3.529,1811.7,1811.6,1.10441]
[1743825171175,3.529,1811.7,1811.6,3.34691]
[1743825172583,7.20243,1811.9,1811.6,3.34691]
[1743825172877,3.523,1811.8,1811.7,1.5122]
[1743825176482,10.72244,1811.9,1811.7,1.5122]
[1743825177780,1.1043,1811.8,1811.5,1.10444]
[1743825177973,1.426,1811.7,1811.5,1.10444]
[1743825178179,1.426,1811.7,1811.6,1.4487]
[1743825180387,1.426,1811.7,1811.6,2.55311]
[1743825180778,1.426,1811.7,1811.6,1.4487]
[1743825182194,1.426,1811.7,1811.6,2.55311]
[1743825182396,1.426,1811.7,1811.6,1.4487]
[1743825182988,1.426,1811.7,1811.6,2.55311]
[1743825184396,9.26466,1811.9,1811.6,2.55311]
[1743825184597,1.5314,1811.8,1811.7,2.2171]
[1743825185890,9.26463,1811.9,1811.7,2.2171]
[1743825186091,10.79603,1811.9,1811.8,1.4699]
[1743825187196,7.27703,1811.9,1811.8,1.4699]
[1743825187396,10.78903,1811.9,1811.8,1.4699]
[1743825187590,1.10429,1811.8,1811.4,3.9512]
[1743825187790,2.48889,1811.8,1811.5,3.24504]
[1743825187990,2.48889,1811.8,1811.6,1.3865]
[1743825188192,1.3846,1811.7,1811.6,1.3865]
[1743825188694,1.3846,1811.7,1811.6,2.49091]
[1743825189097,1.3846,1811.7,1811.6,1.3865]
[1743825189600,1.3846,1811.7,1811.6,2.49091]
[1743825190100,1.3846,1811.7,1811.6,1.3865]
[1743825190900,1.3846,1811.7,1811.6,2.49091]
[1743825192399,1.3846,1811.7,1811.6,1.3865]
[1743825192901,1.3846,1811.7,1811.6,2.49091]
[1743825193601,1.3846,1811.7,1811.6,1.3865]
[1743825194004,2.48895,1811.7,1811.4,4.31229]
[1743825194203,1.4549,1811.6,1811.4,3.2078]
[1743825194404,2.9348,1811.6,1811.4,4.31232]
[1743825194805,1.4799,1811.5,1811.4,4.31232]